[Event "GER-ch Youth-U16 2022"]
[Site "Willingen"]
[Date "2022.06.06"]
[Round "3.10"]
[White "Beyer, Lorenz"]
[Black "Albert, Markus"]
[Result "0-1"]
[ECO "A41"]
[WhiteElo "1512"]
[BlackElo "2053"]
[Annotator "TA"]
[PlyCount "84"]
[EventDate "2022.06.05"]
[EventType "swiss"]
[EventRounds "9"]
[EventCountry "GER"]
[SourceTitle "playchess.com"]
[Source "ChessBase"]
[SourceQuality "1"]
[TimeControl "40/4500+30:900+30"]

{[%evp 9,83,32,32,28,25,25,42,18,18,-14,98,102,106,74,76,-15,81,72,72,70,80,76,85,68,417,425,628,623,621,617,688,681,809,802,979,902,1137,1110,1044,969,1047,1029,1036,1033,1062,1053,982,758,758,716,771,593,586,544,1014,1012,1040,551,441,-1506,-1478,-1464,-1397,-5497,-5197,-5201,-5177,-2789,-2670,-1916,-1830,-29965,-29968,-29974,-29974,-29999]} 1. d4 {[%emt 0:00:00]} d6 {[%emt 0:00:00]} 2. Nf3 {[%emt 0:00:00]} Bg4 {[%emt 0:00:00]} 3. Bf4 {[%emt 0:00:00]} Nd7 {[%emt 0:00:00]} 4. Nbd2 {[%emt 0:00:00]} g6 {[%emt 0:00:00]} 5. c3 {[%emt 0:00:00]} Bg7 {[%emt 0:00:00]} 6. h3 {[%emt 0:00:00] A41: 1 d4 d6: Tartakower System and Modern Defence.} Bxf3 {[%emt 0:00:00]} 7. Nxf3 {[%emt 0:00:00]} e5 {[%emt 0:00:00] [#]} 8. dxe5 $146 {[%emt 0:00:00] White is slightly better.} ({Predecessor:} 8. Bg5 f6 9. Bh4 Nh6 10. Qb3 Nf5 11. e4 Nxh4 12. Nxh4 Nb6 13. a4 a5 14. Be2 exd4 15. cxd4 {0-1 (60) Gil Capape,M (2185)-Sicilia Ruiz,M (2144) Aragon 2008}) 8... dxe5 {[%emt 0:00:00]} 9. Bg3 {[%emt 0:00:00]} f5 {[%emt 0:00:00]} (9... e4 $11 10. Nd4 c6) 10. Qb3 $16 {[%emt 0:00:00] Threatens to win with 0-0-0.} Rb8 {[%emt 0:14:23]} 11. Rd1 {[%emt 0:01:03] Hoping for Bh4.} Qe7 {[%emt 0:05:20]} 12. Bh4 {[%emt 0:14:12]} (12. e3 $16) 12... Ngf6 {[%emt 0:12:39]} (12... Bf6 $11 {keeps the balance.}) 13. e3 $36 {[%emt 0:06:58][%mdl 2048] White is really pushing.} c6 {[%emt 0:27:25]} 14. Bc4 {[%emt 0:14:57]} b5 {[%emt 0:05:59]} 15. Be2 {[%emt 0:01:30]} (15. Be6 Nc5 16. Qb4 Nxe6 $17) 15... Nc5 {[%emt 0:00:22] [#]} 16. Qa3 {[%emt 0:01:13][%cal Of3e5] Strongly threatening Nxe5!} h6 $2 {[%emt 0:06:45][%mdl 8192] [#]} ({Better is} 16... Rc8 $14) 17. Nxe5 $1 $18 {[%emt 0:02:35]} b4 {[%emt 0:07:44]} (17... Qxe5 $142 18. Bg3 Qe7 19. Bxb8 Na4) 18. cxb4 {[%emt 0:01:37]} Qxe5 {[%emt 0:01:36]} 19. Bg3 {[%emt 0:00:54][%cal Bh4g3,Bg3b8,Bb8h2][%mdl 96] Skewer, Deflection} (19. bxc5 Qxb2 20. Qxb2 (20. Qxa7 Qc3+ 21. Kf1 O-O $16) 20... Rxb2 $16) 19... Qe4 {[%emt 0:00:18]} 20. Bxb8 {[%emt 0:05:25]} Qxg2 {[%emt 0:00:22]} 21. Rh2 {[%emt 0:00:32]} (21. bxc5 Qxh1+ 22. Kd2 Qg2 $18) 21... Qg1+ {[%emt 0:00:56]} 22. Bf1 {[%emt 0:00:06]} Ncd7 {[%emt 0:01:10]} 23. Rg2 {[%emt 0:00:16]} Qh1 {[%emt 0:00:07]} 24. Bh2 {[%emt 0:01:55]} O-O {[%emt 0:00:50]} 25. Qxa7 {[%emt 0:00:25]} Rf7 {[%emt 0:01:02]} 26. Qa8+ {[%emt 0:01:26]} Kh7 {[%emt 0:00:06]} 27. Qxc6 {[%emt 0:00:14]} Re7 {[%emt 0:00:45]} 28. Qd6 {[%emt 0:01:22]} Bf8 {[%emt 0:00:21]} 29. Qg3 {[%emt 0:00:05]} Ne5 {[%emt 0:00:37]} 30. f3 {[%emt 0:03:16]} Nh5 {[%emt 0:00:28]} 31. Qf2 {[%emt 0:01:42]} Nc4 {[%emt 0:00:39]} 32. Rg1 {[%emt 0:01:41]} Rxe3+ {[%emt 0:00:16] [#]} 33. Qxe3 $3 {[%emt 0:00:04][%mdl 512] Qa7+ would kill now.} Bxb4+ {[%emt 0:00:17]} 34. Ke2 $4 {[%emt 0:00:59][%mdl 8192]} ({Less strong is} 34. Rd2 Qxh2 35. Qe7+ (35. Bxc4 Bxd2+ 36. Qxd2 Qxg1+ 37. Ke2 Qg2+ 38. Kd3 Qxf3+ 39. Kc2 Nf6 $14) 35... Ng7 36. Qxb4 Nxd2 $18) (34. Kf2 $18 Qxh2+ 35. Rg2 Nxe3 36. Rd7+ (36. Rxh2 Nxd1+ 37. Ke2 Bd6 $17) 36... Kg8 37. Rxh2) 34... Qxh2+ $19 {[%emt 0:00:12]} 35. Rg2 {[%emt 0:00:36]} Nf4+ {[%emt 0:01:09][%mdl 64] Pin, Double Attack} 36. Kf2 {[%emt 0:00:04]} Nxh3+ {[%emt 0:00:12] Pair of Knights!} 37. Ke2 {[%emt 0:00:07]} Nf4+ {[%emt 0:00:09]} 38. Qxf4 {[%emt 0:00:58]} Qxf4 {[%emt 0:00:10][%csl Gc4][%cal Rf4e3]} 39. Rd7+ {[%emt 0:00:09]} Kh8 {[%emt 0:00:25] ( -> ...Qc1)} 40. Rxg6 {[%emt 0:00:56]} Ne5 {[%emt 0:00:45][%csl Ge5][%cal Rf4f3] Black mates.} 41. Rd8+ {[%emt 0:15:43]} Kh7 {[%emt 0:15:30][%csl Ge5][%cal Rf4f3]} 42. Rgg8 {[%emt 0:00:05]} Qxf3# {[%emt 0:00:12] What a bad dream for White.  Weighted Error Value: White=0.14 (very precise) /Black=0.80} 0-1

[Event "GER-ch Youth-U16 2022"]
[Site "Willingen"]
[Date "2022.06.06"]
[Round "3.11"]
[White "Chassard, Cedric"]
[Black "Bock, Marlon"]
[Result "1-0"]
[ECO "B30"]
[WhiteElo "2051"]
[BlackElo "1816"]
[Annotator "TA"]
[PlyCount "97"]
[EventDate "2022.06.05"]
[EventType "swiss"]
[EventRounds "9"]
[EventCountry "GER"]
[SourceTitle "playchess.com"]
[Source "ChessBase"]
[SourceQuality "1"]
[TimeControl "40/4500+30:900+30"]

{[%evp 9,97,-8,41,42,50,51,53,54,63,49,82,48,43,39,51,43,64,46,37,23,60,16,62,62,64,-51,-60,-51,-64,-72,-79,-195,-152,-281,-42,-125,-125,-132,132,47,70,76,76,73,73,73,83,73,89,91,162,158,178,194,179,192,179,179,183,175,365,360,512,490,500,493,577,354,331,351,343,334,920,1056,1012,999,966,928,470,452,508,426,1225,1158,1075,862,1325,1385,657,579]} 1. e4 {[%emt 0:00:00]} c5 {[%emt 0:00:00]} 2. Nf3 {[%emt 0:00:00]} Nc6 {[%emt 0:00:00]} 3. Bb5 {[%emt 0:00:00]} e6 {[%emt 0:00:00]} 4. Bxc6 {[%emt 0:00:00]} bxc6 {[%emt 0:00:00]} 5. e5 {[%emt 0:00:00]} d5 {[%emt 0:00:00]} (5... f6 $11) 6. exd6 $14 {[%emt 0:00:00] B30: Sicilian: 2...Nc6 3 Bb5, lines without ...g6.} Bxd6 {[%emt 0:00:00]} 7. d3 {[%emt 0:00:00]} Nf6 {[%emt 0:00:00]} 8. O-O {[%emt 0:00:00] White is slightly better.} O-O {[%emt 0:00:23] [#]} 9. b3 $146 {[%emt 0:00:00]} ({Predecessor:} 9. Bg5 h6 10. Bh4 Be7 11. Nbd2 a5 12. a4 Ba6 13. Re1 Qb6 14. b3 Nd5 15. Bxe7 Nxe7 {1-0 (66) Ismayil,M (1974)-Nagaeva,A (1671) Moscow 2020}) 9... Ba6 {[%emt 0:08:03]} 10. Bb2 {[%emt 0:00:44]} Re8 {[%emt 0:03:48]} 11. Nbd2 {[%emt 0:00:55]} e5 {[%emt 0:05:50]} 12. Re1 {[%emt 0:00:45][%cal Rf3e5]} Qc7 {[%emt 0:01:16]} 13. Qe2 {[%emt 0:09:35]} Nd5 {[%emt 0:08:36][%cal Oe5e4]} 14. Ne4 {[%emt 0:06:32]} (14. Nxe5 f6 15. Ndf3 fxe5 $19) (14. Bxe5 $2 Bxe5 15. Nxe5 f6 $19) 14... f6 {[%emt 0:04:31][%cal Bf7f6,Bf6f5,Bf5f4][%mdl 32]} 15. Ba3 {[%emt 0:03:26]} Nb4 {[%emt 0:06:58]} (15... Be7 $11 {should be considered.}) 16. Qd2 {[%emt 0:02:06][%cal Oe4c5]} Rab8 {[%emt 0:02:52]} 17. c3 {[%emt 0:06:30]} (17. Bxb4 $14 cxb4 18. a3) 17... Nxd3 $15 {[%emt 0:08:44]} 18. Re3 {[%emt 0:10:52]} f5 {[%emt 0:07:51]} 19. Nxd6 {[%emt 0:04:33]} Qxd6 {[%emt 0:00:07]} 20. Rd1 {[%emt 0:10:47]} (20. Ne1 $17 {might work better.}) 20... e4 {[%emt 0:02:07]} 21. Ne1 {[%emt 0:02:05]} (21. c4 $17) 21... Qe7 $2 {[%emt 0:04:35]} (21... f4 $19 22. Re2 Qg6 23. Nxd3 Bxd3) 22. c4 {[%emt 0:01:28]} (22. Nxd3 $15 Bxd3 23. Ree1) 22... f4 $1 $17 {[%emt 0:02:49]} 23. Re2 {[%emt 0:05:32] [#]} Nxe1 {[%emt 0:02:44][%mdl 8192]} (23... Nxf2 $1 $17 {[%mdl 512] and life is bright.} 24. Kxf2 (24. Rxf2 $2 e3 $19) 24... e3+ 25. Kf1 exd2 26. Rxe7 Rxe7 27. Rxd2 Ree8) 24. Rexe1 {[%emt 0:00:51]} ({White should try} 24. Rdxe1 $16 Qf8 25. Rxe4) 24... Qg5 {[%emt 0:01:30]} 25. Bc1 {[%emt 0:01:07]} e3 {[%emt 0:01:34]} 26. fxe3 {[%emt 0:00:43]} f3 {[%emt 0:00:57]} 27. e4 $36 {[%emt 0:04:04][%mdl 2048] Keeping Black busy.} Qg4 {[%emt 0:01:24]} 28. h3 {[%emt 0:02:39]} Qg6 {[%emt 0:00:35]} 29. Qg5 {[%emt 0:00:43] Against Rbd8} Rf8 {[%emt 0:03:52] [#]} (29... Qxg5 $16 30. Bxg5 fxg2) 30. Qxg6 $1 $18 {[%emt 0:01:06]} f2+ {[%emt 0:00:35]} 31. Kh2 {[%emt 0:00:21] aiming for Qe6+.} hxg6 {[%emt 0:00:33]} 32. Rf1 {[%emt 0:00:29]} Rbe8 {[%emt 0:01:17]} 33. Rd7 {[%emt 0:04:33]} Rxe4 {[%emt 0:01:35] Hoping for ...Re1.} 34. Bb2 {[%emt 0:00:26]} Kh7 {[%emt 0:02:32]} (34... Re2 {was necessary.} 35. Rxg7+ Kh8) 35. Bxg7 {[%emt 0:03:18]} Rf5 {[%emt 0:00:46]} (35... Bc8 $142 36. Rxa7 Rfe8 37. Rxf2 R4e7) 36. g4 {[%emt 0:01:51]} Rf3 {[%emt 0:02:40]} (36... Bc8 $2 37. Rc7 Rf3 38. Bb2+ (38. Rxc8 Kxg7 39. Kg2 Ree3 $16) 38... Kg8 39. Rxc8+) 37. Kg2 {[%emt 0:00:52]} Ref4 {[%emt 0:00:21]} 38. Bd4+ {[%emt 0:02:00]} Rf7 {[%emt 0:01:22]} 39. Rxf7+ {[%emt 0:00:22]} Rxf7 {[%emt 0:00:04]} 40. Rxf2 {[%emt 0:03:11]} ({Much less strong is} 40. Bxc5 Bc8 41. Bxf2 (41. Rxf2 Rxf2+ 42. Kxf2 a6 $18) 41... a5 $18) 40... Rxf2+ {[%emt 0:00:34]} (40... Rd7) 41. Bxf2 {[%emt 0:15:07][%mdl 4096] Endgame KB-KB. White is clearly winning.} Bc8 {[%emt 0:15:07]} 42. Bxc5 {[%emt 0:00:05]} a6 {[%emt 0:00:09]} 43. Kf3 {[%emt 0:01:04]} Kg7 {[%emt 0:01:15]} 44. Kf4 {[%emt 0:00:00]} Kf6 {[%emt 0:00:00]} 45. Bd4+ {[%emt 0:00:00]} Ke6 {[%emt 0:00:00]} (45... Kf7 $142 46. Ke5 c5 47. Bxc5 Bb7) 46. Kg5 {[%emt 0:00:00]} Kf7 {[%emt 0:00:00]} 47. h4 {[%emt 0:00:00]} Kg8 {[%emt 0:00:00]} 48. Kxg6 {[%emt 0:00:00]} Bxg4 {[%emt 0:00:00]} 49. Kf6 {[%emt 0:00:00] White used his chance.  Weighted Error Value: White=0.27 (precise) /Black=0.45} 1-0

[Event "GER-ch Youth-U16 2022"]
[Site "Willingen"]
[Date "2022.06.06"]
[Round "3.12"]
[White "Ehrig, Leon Chris"]
[Black "Stork, Christopher"]
[Result "0-1"]
[ECO "B20"]
[WhiteElo "1890"]
[BlackElo "1994"]
[Annotator "TA"]
[PlyCount "118"]
[EventDate "2022.06.05"]
[EventType "swiss"]
[EventRounds "9"]
[EventCountry "GER"]
[SourceTitle "playchess.com"]
[Source "ChessBase"]
[SourceQuality "1"]
[TimeControl "40/4500+30:900+30"]

{[%evp 12,118,11,-17,-20,-22,0,-7,2,2,27,18,37,12,25,17,96,88,101,98,189,173,164,188,226,276,594,516,1140,1139,1383,1372,1380,475,474,476,473,436,460,455,433,426,456,462,469,458,550,550,593,504,508,515,486,490,509,508,492,391,398,389,397,367,385,381,398,377,377,353,532,529,497,471,451,367,362,0,0,0,0,-160,-88,-782,-752,-1118,-1120,-1085,-1061,-1000,-308,-1755,-1602,-1738,-1597,-2623,-2318,-2243,-2059,-2090,-1855,-5197,-6528,-29972,-29973,-29973,-29975,-29977,-29978,-29989,-29985]} 1. e4 {[%emt 0:00:00]} c5 {[%emt 0:00:00]} 2. b4 {[%emt 0:00:00]} cxb4 {[%emt 0:00:00]} 3. a3 {[%emt 0:00:00]} e6 {[%emt 0:00:00]} 4. axb4 {[%emt 0:00:00]} Bxb4 {[%emt 0:00:00]} 5. c3 {[%emt 0:00:00]} Be7 {[%emt 0:03:35]} 6. d4 {[%emt 0:00:00]} d6 {[%emt 0:04:02]} 7. Bd3 {[%emt 0:01:27][%mdl 1024] White has compensation. 7.Bd3 is better than 7.f4.} Nf6 {[%emt 0:04:34] B20: Sicilian: Unusual White 2nd moves.} 8. f4 {[%emt 0:05:43]} Nc6 {[%emt 0:10:49]} 9. Nf3 {[%emt 0:12:48]} d5 {[%emt 0:05:45] The position is equal.} 10. e5 {[%emt 0:05:03] [#]} Ng8 $146 {[%emt 0:05:54]} (10... Ne4 11. O-O f5 12. exf6 Nxf6 13. Ne5 O-O 14. Nd2 Qc7 15. Qf3 b6 16. Qh3 Bd6) ({Predecessor:} 10... Ne4 11. O-O f5 12. exf6 Nxf6 13. Ne5 O-O 14. Nd2 Qc7 15. Qf3 b6 16. Qh3 Bd6 {1-0 (25) Rozman,L (2343)-Sachdev,T (2392) Chess.com INT 2020}) 11. O-O {[%emt 0:10:28]} h5 {[%emt 0:06:08]} 12. Ng5 {[%emt 0:05:35]} g6 {[%emt 0:02:57]} 13. Qc2 {[%emt 0:03:07][%cal Od3g6] Threatens to win with Bxg6!} Bxg5 {[%emt 0:01:53]} (13... Nh6 $11 {remains equal.}) 14. fxg5 $16 {[%emt 0:01:29]} Nge7 {[%emt 0:00:57]} 15. Rf6 {[%emt 0:07:23]} Qb6 {[%emt 0:06:11]} (15... a6 $16 {is a better defense.}) 16. Qf2 $1 $18 {[%emt 0:02:55]} Nf5 {[%emt 0:02:23]} 17. Ba3 {[%emt 0:02:37]} Bd7 {[%emt 0:05:51] [#]} 18. Bc5 $1 {[%emt 0:02:44]} Qb3 {[%emt 0:04:29]} (18... Qc7 {is a better chance.} 19. Bxf5 gxf5) 19. Qd2 {[%emt 0:00:53]} Ne3 {[%emt 0:07:27]} (19... b6 $142) 20. Qxe3 {[%emt 0:00:32]} Qd1+ {[%emt 0:01:06]} 21. Rf1 {[%emt 0:00:17]} Qg4 {[%emt 0:00:48]} 22. Qf4 {[%emt 0:01:27]} (22. h3 $142 Qh4 23. Na3) 22... Qxf4 {[%emt 0:00:06]} 23. Rxf4 {[%emt 0:00:04]} Rc8 {[%emt 0:00:50]} 24. Nd2 {[%emt 0:02:09]} Nxe5 {[%emt 0:02:59]} 25. Be2 {[%emt 0:07:06]} (25. dxe5 Rxc5 26. Rxa7 Rxc3 $18) 25... Nc6 {[%emt 0:00:43]} 26. Raf1 {[%emt 0:01:15]} b6 {[%emt 0:02:44]} 27. Bd6 {[%emt 0:00:18]} Nd8 {[%emt 0:00:18]} 28. Bd3 {[%emt 0:01:40][%cal Od3g6] Hoping for Bxg6!} Rg8 {[%emt 0:01:52]} 29. c4 dxc4 {[%emt 0:00:52] [#]} 30. Ne4 $1 {[%emt 0:05:32][%cal Re4f6]} f5 {[%emt 0:02:33] [#]} 31. gxf6 $1 {[%emt 0:02:01] Intending f7+ and mate.} Nf7 {[%emt 0:00:29]} 32. Bc2 {[%emt 0:00:49]} Bc6 {[%emt 0:01:09]} 33. Ba3 {[%emt 0:01:13]} a6 {[%emt 0:00:56]} 34. Nd6+ {[%emt 0:02:17]} Nxd6 {[%emt 0:00:06]} 35. f7+ {[%emt 0:00:09]} ({Not} 35. Bxd6 Kf7 36. Rb1 b5 $18) 35... Kd7 {[%emt 0:01:22]} 36. fxg8=Q {[%emt 0:01:08]} ({Resist} 36. fxg8=R Rxg8 37. Rf6 h4 $18) 36... Rxg8 {[%emt 0:00:02]} 37. Rf6 {[%emt 0:01:34]} Bd5 {[%emt 0:00:38]} 38. Rb1 {[%emt 0:01:30]} b5 {[%emt 0:00:34]} 39. Bb4 {[%emt 0:00:45]} Nb7 {[%emt 0:01:08]} (39... Nf5 $142 40. Bc5 Rg7) 40. Ra1 {[%emt 0:00:51]} Ra8 {[%emt 0:00:34]} 41. Rxg6 {[%emt 0:00:00]} a5 {[%emt 0:00:00]} 42. Rg7+ {[%emt 0:00:00]} Kc6 {[%emt 0:00:00]} 43. Rxb7 $2 {[%emt 0:00:00]} axb4 $11 {[%emt 0:00:00]} 44. Rxa8 {[%emt 0:00:00]} Kxb7 {[%emt 0:00:00]} 45. Ra1 {[%emt 0:05:53]} (45. Rf8) (45. Rf8 $1 $11) 45... b3 $17 {[%emt 0:00:00]} 46. Bxb3 {[%emt 0:02:10][%mdl 8192] This costs White the game.} cxb3 {[%emt 0:00:00][%mdl 4096] Endgame KR-KB} 47. Rb1 {[%emt 0:00:17]} Kb6 {[%emt 0:00:40]} 48. Kf2 {[%emt 0:00:08] [#]} Ka5 $1 {[%emt 0:02:04]} 49. Ke3 {[%emt 0:00:43]} Kb4 {[%emt 0:01:31]} 50. Kd2 $2 {[%emt 0:00:08]} (50. g3 Kc3 51. Rc1+ Kb2 52. Kd2) 50... Be4 $19 {[%emt 0:07:40]} 51. Rb2 {[%emt 0:00:41]} Bxg2 {[%emt 0:00:44] Strongly threatening ...Be4.} 52. Kc1 {[%emt 0:01:12]} Bd5 {[%emt 0:02:08] White must now prevent ...Kc3.} 53. Re2 {[%emt 0:02:48]} Kc3 {[%emt 0:00:45]} 54. Re3+ {[%emt 0:00:26]} Kxd4 {[%emt 0:00:23]} 55. Rh3 {[%emt 0:00:07]} e5 {[%emt 0:01:03][%cal Be6e5,Be5e4,Be4e3,Be3e2][%mdl 32] ( -> ...e4)} 56. Rxh5 {[%emt 0:00:30]} e4 {[%emt 0:00:24] Black mates.} 57. Rg5 {[%emt 0:00:33]} e3 {[%emt 0:00:35]} 58. h4 {[%emt 0:00:31]} e2 {[%emt 0:01:05]} 59. Kd2 {[%emt 0:00:04]} b2 {[%emt 0:00:12] Weighted Error Value: White=0.82/Black=0.23 (precise)} 0-1

[Event "GER-ch Youth-U16 2022"]
[Site "Willingen"]
[Date "2022.06.06"]
[Round "3.13"]
[White "Metzdorf, Matteo"]
[Black "Kort, Felix"]
[Result "1-0"]
[ECO "C77"]
[WhiteElo "2009"]
[BlackElo "1894"]
[Annotator "TA"]
[PlyCount "95"]
[EventDate "2022.06.05"]
[EventType "swiss"]
[EventRounds "9"]
[EventCountry "GER"]
[SourceTitle "playchess.com"]
[Source "ChessBase"]
[SourceQuality "1"]
[TimeControl "40/4500+30:900+30"]

{[%evp 17,95,38,39,35,30,34,47,27,54,0,34,4,3,3,10,2,12,0,48,47,90,90,93,89,115,26,55,24,23,36,50,42,48,45,95,99,160,162,154,147,196,170,404,410,386,267,271,220,233,175,430,423,421,340,351,350,325,342,330,272,350,350,339,322,329,330,500,350,345,326,356,354,333,322,314,315,497,464,804,787]} 1. e4 {[%emt 0:00:00]} e5 {[%emt 0:00:00]} 2. Nf3 {[%emt 0:00:00]} Nc6 {[%emt 0:00:00]} 3. Bb5 {[%emt 0:00:00][%cal Bf1b5,Bb5a4,Ba4c2][%mdl 32]} a6 {[%emt 0:00:00]} 4. Ba4 {[%emt 0:00:00]} Nf6 {[%emt 0:00:00]} 5. d3 {[%emt 0:00:00]} d6 {[%emt 0:00:00]} 6. c3 {[%emt 0:00:00]} b5 {[%emt 0:00:00]} 7. Bc2 {[%emt 0:00:00]} Be7 {[%emt 0:00:00]} 8. O-O {[%emt 0:00:00]} O-O {[%emt 0:00:00]} 9. Re1 {[%emt 0:00:00] 9.Nbd2 deserves study.} Re8 {[%emt 0:00:00]} 10. Nbd2 {[%emt 0:00:00] C84: Closed Ruy Lopez: Unusual White 6th moves.} h6 {[%emt 0:00:00]} 11. Nf1 {[%emt 0:02:01] 11.d4 is vanishing.} Bb7 {[%emt 0:00:00]} 12. Ng3 {[%emt 0:02:52] White is slightly better.} Bf8 {[%emt 0:00:00]} 13. Nf5 {[%emt 0:16:17] [#]} (13. d4 $14) 13... Nb8 $146 {[%emt 0:18:20]} ({Predecessor:} 13... d5 14. Qe2 Ne7 15. Nxe7+ Rxe7 16. a4 Rb8 17. axb5 axb5 18. h3 g6 19. Be3 Bg7 {0-1 (38) Van Foreest,J (2682)-Sevian,S (2660) Chess.com INT 2020}) 14. h3 {[%emt 0:21:53]} c5 {[%emt 0:03:57]} 15. Nh2 {[%emt 0:08:43]} d5 {[%emt 0:16:17]} 16. Ng4 {[%emt 0:00:44]} Nbd7 {[%emt 0:05:06]} 17. Qf3 {[%emt 0:10:13][%cal Rc1h6]} dxe4 {[%emt 0:06:15]} (17... Kh8 $11) 18. dxe4 $14 {[%emt 0:00:28]} Kh7 {[%emt 0:02:19]} 19. Rd1 {[%emt 0:13:08] aiming for Nxf6+.} Qb6 {[%emt 0:05:28]} 20. Be3 {[%emt 0:03:41][%cal Of5h6]} Qc6 {[%emt 0:07:40] [#]} 21. Ng3 {[%emt 0:01:27] 0x0.001aa05602d0dp-1022s more active pieces.} (21. Rd5 $1 $16 {[%mdl 512]}) 21... Rad8 {[%emt 0:04:52]} 22. b3 {[%emt 0:01:41]} Nxg4 {[%emt 0:07:08]} 23. hxg4 {[%emt 0:00:29]} Qg6 {[%emt 0:02:56]} 24. Qe2 {[%emt 0:01:40]} Nb6 {[%emt 0:03:23]} 25. Nf5 {[%emt 0:00:27]} Qe6 {[%emt 0:00:55] White now steadily converts the win.} ({Better is} 25... c4 $14) 26. g5 $16 {[%emt 0:00:31]} hxg5 {[%emt 0:00:37]} (26... Bc6 $142) 27. Qh5+ {[%emt 0:01:24]} (27. Bxg5 $6 Rxd1+ 28. Rxd1 Kg8 $14) 27... Kg8 {[%emt 0:00:05]} 28. Qxg5 {[%emt 0:00:24]} ({But not} 28. Bxg5 $6 Rxd1+ 29. Rxd1 c4 $16) 28... Nd7 {[%emt 0:02:31]} (28... Rxd1+ $16 29. Rxd1 Nd7) 29. Rd6 {[%emt 0:00:40]} f6 $2 {[%emt 0:01:26] [#]} (29... Qxd6 {is a better defense.} 30. Nxd6 Bxd6) 30. Qg6 $1 $18 {[%emt 0:00:49]} Qxf5 {[%emt 0:00:29]} 31. Qxf5 {[%emt 0:00:20]} Bxd6 {[%emt 0:00:01]} 32. Rd1 {[%emt 0:00:27]} Nf8 {[%emt 0:00:09]} 33. b4 {[%emt 0:00:41]} Bc8 $2 {[%emt 0:00:12]} (33... c4 34. a4 Bc7) 34. Qh5 {[%emt 0:00:20][%cal Od1d6] Threatens to win with Rxd6!} c4 {[%emt 0:00:23]} 35. Bb6 {[%emt 0:00:22] Inhibits Bc7.} g6 {[%emt 0:00:27]} 36. Qf3 {[%emt 0:00:35]} Rd7 {[%emt 0:00:35]} 37. Qxf6 {[%emt 0:00:23]} Re6 {[%emt 0:00:03]} 38. Qf3 {[%emt 0:00:32]} Rf7 {[%emt 0:00:36]} 39. Qe3 {[%emt 0:00:35]} Nd7 {[%emt 0:01:18]} 40. Ba7 {[%emt 0:00:56][%cal Bb6a7,Ba7c5,Bc5d6,Bd6e5][%mdl 32]} Bb7 {[%emt 0:01:22]} 41. Rd2 {[%emt 0:00:00]} Nf6 {[%emt 0:00:00]} (41... Bc6 $142 42. Bd1 Nf6) 42. Bc5 {[%emt 0:03:45]} Bc7 {[%emt 0:00:00]} 43. Qh3 {[%emt 0:02:33]} Re8 {[%emt 0:00:00]} 44. Qh6 {[%emt 0:01:17]} Rg7 {[%emt 0:00:00]} 45. f3 {[%emt 0:01:39]} Kf7 {[%emt 0:02:45]} 46. Qe3 {[%emt 0:01:06]} Kg8 {[%emt 0:01:36]} (46... Re6 {keeps fighting.} 47. a4 g5) 47. Bd6 {[%emt 0:01:19] And now Bxc7 would win.} Bd8 {[%emt 0:01:26] [#]} (47... Re6 $142 48. Bxc7 Rxc7 49. Rd8+ Kg7) 48. Bxe5 $1 {[%emt 0:01:18][%mdl 512] Weighted Error Value: White=0.24 (precise) /Black=0.38} 1-0